bitfinex-derivatives/quotes_ETHF0:USTF0_20250330
["timestamp","ask_amount","ask_price","bid_price","bid_amount"]
[1743337045614,4.8926,1832.2,1832.1,40.80819426]
[1743337045910,3.2078,1832.6,1832.1,44.01599426]
[1743337046108,3.502,1832.7,1832.2,2.8]
[1743337046414,3.502,1832.7,1832.3,1.3664]
[1743337046614,3.502,1832.7,1832.6,40.8]
[1743337046916,3.2078,1832.8,1832.6,40.8]
[1743337047217,3.2078,1832.8,1832.7,2.084]
[1743337047908,3.2078,1832.8,1832.7,42.884]
[1743337053417,3.50746284,1833.0,1832.7,42.884]
[1743337053614,3.50746284,1833.0,1832.8,1.408]
[1743337054117,3.2078,1832.9,1832.8,1.408]
[1743337054521,3.2078,1832.9,1832.8,42.208]
[1743337055311,3.50746284,1833.0,1832.8,42.208]
[1743337055516,3.50746284,1833.0,1832.9,1.4568]
[1743337056119,3.50746284,1833.0,1832.9,42.2568]
[1743337060524,1.47326284,1833.0,1832.9,42.2568]
[1743337062524,0.00546284,1833.0,1832.9,42.2568]
[1743337065042,0.00546284,1833.0,1832.9,45.4646]
[1743337065540,1.5001,1833.3,1832.9,45.4646]
[1743337065836,1.46869102,1833.3,1832.9,4.6646]
[1743337066034,3.2078,1833.4,1833.0,1.4469]
[1743337066341,3.2078,1833.4,1833.3,40.8]
[1743337068641,0.6978,1833.5,1833.3,40.8]
[1743337068841,2.186,1833.5,1833.4,1.3875]
[1743337069041,1.4882,1833.5,1833.4,1.3875]
[1743337069434,1.4882,1833.5,1833.4,42.1875]
[1743337070347,2.2158,1833.5,1833.4,42.1875]
[1743337074444,1.4882,1833.5,1833.4,42.1875]
[1743337076646,1.4882,1833.5,1833.4,40.8]
[1743337076840,2.2063,1833.5,1833.4,40.8]
[1743337080550,2.2063,1833.5,1833.4,40.801]
[1743337083767,2.2063,1833.5,1833.0,1.48729426]
[1743337083768,7.9141,1833.5,1833.0,0.00819426]
[1743337083970,3.2078,1833.3,1833.0,0.00819426]
[1743337084261,2.2065,1833.2,1833.0,0.00819426]
[1743337084469,5.7243,1833.1,1833.0,0.00819426]
[1743337084658,5.7243,1833.1,1832.9,1.41038528]
[1743337084852,1.4944,1833.0,1832.9,1.41038528]
[1743337085255,4.2356,1833.3,1832.9,42.21038528]
[1743337085560,1.3719,1833.2,1832.9,42.21038528]
[1743337085761,1.3719,1833.2,1832.9,40.80819426]
[1743337086253,0.00819426,1833.3,1833.0,3.2078]
[1743337086459,5.838,1833.4,1833.0,3.2078]
[1743337086460,7.18668528,1833.4,1833.1,0.7087]
[1743337086758,1.3719,1833.3,1833.2,0.7471]
[1743337087358,1.3719,1833.3,1833.2,41.5471]
[1743337087961,1.3719,1833.3,1833.2,42.9986]
[1743337094765,0.7021,1833.6,1833.2,42.9986]
[1743337094964,1.4991,1833.5,1833.3,1.5027]
[1743337095363,1.4991,1833.5,1833.4,40.8]
[1743337096159,1.4991,1833.5,1833.4,41.5418]
[1743337097064,7.13200408,1833.7,1833.4,41.5418]
[1743337097366,6.7068,1833.7,1833.5,1.5027]
[1743337097562,1.4282,1833.6,1833.5,1.5027]
[1743337098163,1.4282,1833.6,1833.5,42.3027]
[1743337101364,1.4282,1833.6,1833.5,40.8]
[1743337127076,1.4282,1833.6,1833.5,43.7221]
[1743337133087,1.4282,1833.6,1833.5,44.39026959]
[1743337137308,1.4282,1833.6,1833.5,43.69096959]
[1743337137907,1.4282,1833.6,1833.5,42.19416959]
[1743337139191,1.4282,1833.6,1833.5,41.526]
[1743337142391,1.4282,1833.6,1833.5,40.8]
[1743337142792,4.636,1833.6,1833.5,40.8]
[1743337142992,8.133,1833.6,1833.5,40.8]
[1743337143193,8.133,1833.6,1833.5,41.47748574]
[1743337143810,4.9252,1833.6,1833.5,41.47748574]
[1743337146816,1.4282,1833.6,1833.5,41.47748574]
[1743337154814,6.7048,1834.2,1833.5,44.68528574]
[1743337155015,6.7048,1834.2,1833.8,3.2078]
[1743337155016,9.4848,1834.2,1833.8,3.2078]
[1743337155214,1.4646,1834.1,1833.9,2.82390748]
[1743337155515,1.4646,1834.1,1834.0,42.2042]
[1743337155915,1.4646,1834.1,1834.0,42.88168574]
[1743337165817,1.4646,1834.1,1834.0,46.08948574]
[1743337167723,1.4646,1834.1,1834.0,44.68528574]
[1743337167926,4.9606,1834.1,1834.0,41.47748574]
[1743337168517,4.9606,1834.1,1834.0,40.8]
[1743337174433,1.4646,1834.1,1834.0,40.8]
[1743337177536,3.9646,1834.1,1833.8,0.00819426]
[1743337177728,3.2078,1834.0,1833.6,3.2011778]
[1743337177928,4.2302,1833.9,1833.6,3.2011778]
[1743337178128,6.293,1833.9,1833.7,0.67453833]
[1743337178336,1.3759,1833.8,1833.7,0.67453833]
[1743337178535,1.3759,1833.8,1833.7,41.47453833]
[1743337185645,1.3759,1833.8,1833.7,42.19753469]
[1743337185945,0.00819426,1833.9,1833.7,46.87663469]
[1743337186145,0.00819426,1833.9,1833.8,2.14889636]
[1743337186442,0.00819426,1833.9,1833.8,29.74889636]
[1743337186646,0.00819426,1833.9,1833.8,71.22343469]
[1743337186844,0.00819426,1833.9,1833.8,43.62343469]
[1743337187346,0.00819426,1833.9,1833.8,43.62318707]
[1743337197454,0.00819426,1833.9,1833.8,43.62424365]
[1743337200457,0.00819426,1833.9,1833.8,42.19834365]
[1743337200955,8.20099426,1833.9,1833.8,41.47453833]
[1743337201150,11.43699426,1833.9,1833.8,41.47453833]
[1743337201747,11.43699426,1833.9,1833.6,0.00819426]
[1743337202056,1.41,1833.8,1833.6,0.00819426]
[1743337202356,0.7363,1833.7,1833.6,0.00819426]
[1743337202855,0.7363,1833.7,1833.6,40.80819426]
[1743337206361,1.41,1833.8,1833.6,41.55299426]
[1743337206562,1.41,1833.8,1833.7,1.4695]
[1743337207156,1.41,1833.8,1833.7,42.2695]
[1743337211664,1.41,1833.8,1833.7,42.9613]
[1743337217966,1.41,1833.8,1833.7,40.8]
[1743337218462,2.1101,1833.8,1833.7,40.8]
[1743337219757,1.41,1833.8,1833.7,42.1756]
[1743337226476,1.41,1833.8,1833.7,40.8]
[1743337227873,1.41,1833.8,1833.6,0.00819426]
[1743337228072,7.437,1833.7,1833.6,0.00819426]
[1743337228779,7.437,1833.7,1833.6,40.80819426]
[1743337234777,3.942,1833.7,1833.6,40.80819426]
[1743337234979,1.41,1833.8,1833.6,40.80819426]
[1743337235180,1.41,1833.8,1833.7,2.1293]
[1743337235379,1.41,1833.8,1833.7,2.8201]
[1743337235578,1.41,1833.8,1833.7,43.6201]
[1743337239691,0.00819426,1833.9,1833.7,43.6201]
[1743337239886,0.00819426,1833.9,1833.8,1.3843]
[1743337240580,0.00819426,1833.9,1833.8,42.1843]
[1743337247702,0.75489426,1833.9,1833.8,42.1843]
[1743337250403,0.75489426,1833.9,1833.8,40.8]
[1743337250702,1.50009426,1833.9,1833.8,40.8]
[1743337253006,1.50009426,1833.9,1833.8,42.2961]
[1743337256204,1.50009426,1833.9,1833.8,40.8]
[1743337258711,2.87239426,1833.9,1833.8,40.8]
[1743337264121,2.87239426,1833.9,1833.8,42.181]
[1743337264552,2.87239426,1833.9,1833.8,40.8]
[1743337265441,2.87239426,1833.9,1833.6,0.00819426]
[1743337265442,5.37239426,1833.9,1833.6,0.00819426]
[1743337265633,3.2078,1833.7,1833.6,0.00819426]
[1743337265826,6.7018,1833.7,1833.6,0.00819426]
[1743337266439,6.7018,1833.7,1833.6,40.80819426]
[1743337272114,3.494,1833.7,1833.6,40.80819426]
[1743337272314,6.7018,1833.7,1833.6,40.80819426]
[1743337273412,3.494,1833.7,1833.6,40.80819426]
[1743337273615,6.7018,1833.7,1833.6,40.80819426]
[1743337276121,6.7018,1833.7,1833.3,0.7455]
[1743337276321,2.9586,1833.6,1833.3,0.7455]
[1743337276519,1.4989,1833.5,1833.3,0.7455]
[1743337276820,1.4989,1833.5,1833.3,2.1726]
[1743337277123,1.4989,1833.5,1833.4,40.8]
[1743337277715,1.4989,1833.5,1833.4,42.9523]
[1743337282628,3.2078,1833.7,1833.4,42.9523]
[1743337282821,4.96999426,1833.9,1833.6,3.2078]
[1743337283022,1.4678,1833.8,1833.7,2.81]
[1743337283329,1.4678,1833.8,1833.7,43.61]
[1743337284535,1.4678,1833.8,1833.7,41.5213]
[1743337284723,2.1694,1833.8,1833.7,41.5213]
[1743337286323,5.3772,1833.8,1833.7,41.5213]
[1743337287428,5.3772,1833.8,1833.7,40.8]
[1743337289232,5.3772,1833.8,1833.5,2.1724]
[1743337289429,1.4906,1833.7,1833.5,2.1724]
[1743337289628,2.1818,1833.7,1833.5,2.1724]
[1743337290031,1.4906,1833.6,1833.5,2.1724]
[1743337290732,1.4906,1833.6,1833.5,42.9724]
[1743337292654,4.9846,1833.6,1833.5,40.8]
[1743337295433,7.4846,1833.6,1833.0,2.1933]
[1743337295629,3.2078,1833.3,1833.0,0.7079]
[1743337295833,6.2801,1833.2,1832.6,1.4854]
[1743337296035,4.575,1833.1,1832.7,0.7079]
[1743337296241,1.3672,1833.0,1832.7,0.7079]
[1743337296443,3.494,1832.9,1832.7,0.7079]
[1743337296735,1.3672,1832.8,1832.7,0.71609426]
[1743337296941,1.3672,1832.8,1832.7,43.00149426]
[1743337302345,3.2078,1832.9,1832.7,43.00149426]
[1743337302644,3.50219426,1833.0,1832.8,1.3875]
[1743337302835,1.4734,1832.9,1832.8,1.3875]
[1743337303030,1.4734,1832.9,1832.8,42.1875]
[1743337303237,3.50219426,1833.0,1832.8,42.1875]
[1743337303436,4.97559426,1833.0,1832.9,1.3875]
[1743337303638,4.97559426,1833.0,1832.9,2.0729]
[1743337304143,4.97559426,1833.0,1832.9,42.8729]
[1743337308244,5.67239426,1833.0,1832.9,42.1875]
[1743337311650,4.97559426,1833.0,1832.9,42.1875]
[1743337313052,1.48159426,1833.0,1832.9,42.1875]
[1743337313252,0.00819426,1833.0,1832.9,42.1875]
[1743337319356,0.00819426,1833.0,1832.9,40.8]
[1743337319757,2.06319426,1833.0,1832.9,40.8]
[1743337319962,2.75319426,1833.0,1832.9,40.8]
[1743337324157,2.75319426,1833.0,1832.7,0.00819426]
[1743337324357,4.6609,1832.9,1832.7,0.00819426]
[1743337324557,4.9471,1832.8,1832.7,0.00819426]
[1743337325154,4.9471,1832.8,1832.7,40.80819426]
[1743337331469,7.4471,1832.8,1832.3,3.2078]
[1743337331669,6.1324,1832.7,1832.3,3.2078]
[1743337331972,1.4957,1832.6,1832.3,3.2078]
[1743337332166,3.494,1832.5,1832.3,3.2078]
[1743337332367,2.2103,1832.4,1832.3,3.2078]
[1743337332573,2.9111,1832.4,1832.3,3.2078]
[1743337332774,1.4957,1832.4,1832.3,3.2078]
[1743337332974,1.4957,1832.4,1832.3,46.8567]
[1743337335176,1.4957,1832.4,1832.3,46.1114]
[1743337337477,1.4957,1832.4,1832.3,40.8]
[1743337337678,2.2197,1832.4,1832.3,40.8]
[1743337339180,2.2197,1832.4,1832.3,42.2106]
[1743337339973,4.9907,1832.4,1832.3,42.9466]
[1743337344282,4.9907,1832.4,1832.3,40.8]
[1743337347085,4.9907,1832.4,1832.3,42.9886]
[1743337347288,4.9907,1832.4,1832.3,42.2692]
[1743337347682,4.9907,1832.4,1832.3,40.8]
[1743337351078,4.9907,1832.4,1832.3,42.291]
[1743337354584,1.4957,1832.4,1832.3,42.291]
[1743337361493,5.81478528,1835.0,1832.3,99.732]
[1743337361697,6.7198,1834.6,1833.8,3.2078]
[1743337361990,2.8127,1835.0,1833.8,3.2078]
[1743337361991,3.2078,1834.8,1833.8,3.2078]
[1743337362188,3.523,1834.4,1833.8,44.0078]
[1743337362589,1.4318,1834.3,1833.8,44.0078]
[1743337362786,0.00819426,1834.0,1833.8,44.0078]
[1743337363185,0.00819426,1834.0,1833.8,44.68207603]
[1743337363398,0.00819426,1834.0,1833.9,1.391]
[1743337364101,0.00819426,1834.0,1833.9,42.191]
[1743337364796,1.43999426,1834.0,1833.9,42.191]
[1743337366502,3.93999426,1834.0,1833.9,40.8]
[1743337367589,3.93999426,1834.0,1833.7,0.00819426]
[1743337367789,1.4098,1833.9,1833.7,0.00819426]
[1743337367993,4.9212,1833.8,1833.7,0.00819426]
[1743337368500,4.9212,1833.8,1833.7,40.80819426]
[1743337369794,7.4212,1833.8,1833.7,40.80819426]
[1743337370096,10.629,1833.8,1833.2,3.2078]
[1743337370296,3.2078,1833.6,1833.2,3.2078]
[1743337370490,4.9558,1833.5,1833.2,3.2078]
[1743337370692,0.7144,1833.4,1833.2,3.2078]
[1743337370893,1.4278,1833.3,1833.2,3.2078]
[1743337371201,3.9278,1833.3,1833.1,0.00819426]
[1743337371395,3.527,1833.2,1833.1,0.00819426]
[1743337371697,4.8948,1833.2,1833.1,0.00819426]
[1743337371899,4.8948,1833.2,1833.1,40.80819426]
[1743337372292,7.3948,1833.2,1833.1,40.80819426]
[1743337374697,4.8948,1833.2,1833.1,40.80819426]
[1743337375097,4.8928,1833.2,1833.1,40.80819426]
[1743337377903,4.8938,1833.2,1833.1,40.80819426]
[1743337385808,4.8848,1833.2,1833.1,40.80819426]
[1743337399419,4.8848,1833.2,1833.1,41.48518295]
[1743337399722,4.8848,1833.2,1833.1,0.67698869]
[1743337399921,10.5926,1833.2,1832.8,2.93273282]
[1743337400126,1.3846,1833.1,1832.8,2.93273282]
[1743337400424,0.6977,1833.0,1832.8,2.93273282]
[1743337400625,4.8916,1832.9,1832.8,2.93273282]
[1743337400823,4.8916,1832.9,1832.8,43.73273282]
[1743337402825,5.33016424,1832.9,1832.8,43.73273282]
[1743337407829,5.33016424,1832.9,1832.8,40.8]
[1743337411028,5.33016424,1832.9,1832.7,0.00819426]
[1743337411229,1.3659,1832.8,1832.7,0.00819426]
[1743337411918,1.3659,1832.8,1832.7,40.80819426]
[1743337415928,4.8609,1832.8,1832.7,40.80819426]
[1743337416227,4.8609,1832.8,1832.7,41.50849426]
[1743337416426,4.8609,1832.8,1832.7,42.91789426]
[1743337425226,4.8609,1832.8,1832.7,42.21759426]
[1743337425431,4.8609,1832.8,1832.6,0.6948]
[1743337425627,2.091,1832.7,1832.6,0.6948]
[1743337426330,2.091,1832.7,1832.6,41.4948]
[1743337426935,2.091,1832.7,1832.6,40.8]
[1743337437741,5.2988,1832.7,1832.6,40.8]
[1743337438245,2.091,1832.7,1832.6,40.8]
[1743337441351,2.091,1832.7,1832.5,1.47096284]
[1743337441550,2.1068,1832.6,1832.5,1.47096284]
[1743337442454,2.1068,1832.6,1832.5,42.27096284]
[1743337447153,2.1068,1832.6,1832.5,40.80546284]
[1743337448845,2.1068,1832.6,1832.5,42.21896284]
[1743337450241,2.1068,1832.6,1832.5,40.80546284]
[1743337451354,2.1068,1832.6,1832.5,42.29606284]
[1743337455255,3.2078,1832.8,1832.5,42.29606284]
[1743337455456,3.495,1832.7,1832.6,1.4213]
[1743337455853,3.495,1832.7,1832.6,42.2213]
[1743337457157,3.2078,1832.8,1832.6,42.2213]
[1743337457361,3.2078,1832.8,1832.7,2.1051]
[1743337457565,3.2078,1832.8,1832.7,2.8426]
[1743337458059,3.2078,1832.8,1832.7,43.6426]
[1743337459059,3.495,1832.9,1832.7,43.6426]
[1743337459259,3.495,1832.9,1832.8,1.4076]
[1743337459860,3.495,1832.9,1832.8,42.2076]
[1743337460966,3.495,1833.0,1832.8,42.2076]
[1743337461161,3.495,1833.0,1832.9,1.4076]
[1743337461965,3.495,1833.0,1832.9,42.2076]
[1743337464166,0.00819426,1833.1,1832.9,47.9154]
[1743337464364,0.4379966,1833.5,1833.0,2.106]
[1743337464663,3.494,1833.4,1833.1,5.3201]
[1743337464864,3.494,1833.4,1833.2,1.3611]
[1743337467262,3.494,1833.4,1833.3,40.8]
[1743337467462,0.46134476,1833.5,1833.3,41.4855]
[1743337467667,0.46134476,1833.5,1833.4,1.4148]
[1743337467867,3.95534476,1833.5,1833.4,1.4148]
[1743337468266,0.00819426,1833.5,1833.4,42.2148]
[1743337468465,3.494,1833.7,1833.4,42.2148]
[1743337468675,3.494,1833.7,1833.5,5.3386]
[1743337469063,3.494,1833.7,1833.6,1.391]
[1743337469466,3.494,1833.8,1833.6,1.391]
[1743337469668,3.50219426,1833.8,1833.7,40.8]
[1743337469973,3.50219426,1833.8,1833.7,41.4855]
[1743337473681,3.50219426,1833.8,1833.7,40.8]
[1743337473875,4.97209426,1833.8,1833.7,40.8]
[1743337474475,4.97209426,1833.8,1833.7,42.3079]
[1743337475176,3.50219426,1833.8,1833.7,42.3079]
[1743337479381,4.21369426,1833.8,1833.7,42.3079]
[1743337480476,0.00819426,1833.8,1833.7,42.3079]
[1743337480683,4.2045,1834.2,1833.7,48.0157]
[1743337480887,5.5885,1834.2,1833.8,1.4862]
[1743337481179,5.57368354,1834.2,1833.8,1.4862]
[1743337481380,1.384,1834.1,1833.9,1.422]
[1743337481579,1.384,1834.1,1834.0,1.4862]
[1743337481779,1.384,1834.1,1834.0,42.2862]
[1743337484784,3.50019426,1834.2,1834.0,42.2862]
[1743337485084,4.86959426,1834.2,1834.1,1.403]
[1743337485780,4.86959426,1834.2,1834.1,42.203]
[1743337487280,4.86959426,1834.2,1834.1,45.4108]
[1743337487682,0.00819426,1834.2,1834.1,45.4108]
[1743337487880,0.45350971,1834.6,1834.1,47.9108]
[1743337488080,4.9354,1834.5,1834.2,2.1654]
[1743337488281,1.4434,1834.4,1834.3,2.1428]
[1743337488985,1.4434,1834.4,1834.3,42.9428]
[1743337492387,2.1337,1834.4,1834.3,42.9428]
[1743337494688,2.1337,1834.4,1834.3,40.8]
[1743337499693,1.4434,1834.4,1834.3,40.8]
[1743337499894,1.4434,1834.4,1834.3,42.212]
[1743337501694,3.49919426,1834.5,1834.3,42.212]
[1743337501996,3.49919426,1834.5,1834.4,2.8093]
[1743337502391,3.49919426,1834.5,1834.4,43.6093]
[1743337503298,0.00819426,1834.5,1834.4,43.6093]
[1743337503897,1.39639426,1834.5,1834.4,43.6093]
[1743337505298,1.39639426,1834.5,1834.4,46.8171]
[1743337505502,0.00819426,1834.5,1834.4,46.8171]
[1743337505697,53.5978,1835.5,1834.4,49.3171]
[1743337505997,3.491,1835.4,1834.7,3.2078]
[1743337506201,3.491,1835.4,1834.8,2.7512]
[1743337506401,3.491,1835.4,1834.9,1.3699]
[1743337506700,0.00819426,1835.3,1835.0,0.00819426]
[1743337506899,0.45817969,1835.3,1835.0,0.00819426]
[1743337507801,0.45817969,1835.3,1835.2,40.8]
[1743337508900,3.25627969,1835.3,1835.2,40.8]
[1743337510205,2.80629426,1835.3,1835.2,40.8]
[1743337510499,6.29629426,1835.3,1835.2,40.8]
[1743337511304,6.74544208,1835.3,1835.2,40.8]
[1743337511999,6.29629426,1835.3,1835.2,40.8]
[1743337512993,2.80629426,1835.3,1835.2,40.8]
[1743337513193,5.57889426,1835.3,1835.2,40.8]
[1743337513501,5.57889426,1835.3,1835.2,42.2235]
[1743337515096,2.08889426,1835.3,1835.2,42.2235]
[1743337515296,5.57889426,1835.3,1835.2,42.9062]
[1743337515495,2.08889426,1835.3,1835.2,42.9062]
[1743337515898,1.39949426,1835.3,1835.2,42.9062]
[1743337517012,3.49,1835.7,1835.2,48.614]
[1743337517308,4.8557,1835.7,1835.3,1.3772]
[1743337517707,4.8557,1835.7,1835.6,40.8]
[1743337517911,1.3657,1835.7,1835.6,40.8]
[1743337518106,1.3657,1835.7,1835.6,44.0078]
[1743337518703,1.3657,1835.7,1835.6,44.7519]
[1743337523513,1.3657,1835.7,1835.6,44.0078]
[1743337523903,4.5735,1835.7,1835.6,40.8]
[1743337524099,1.3657,1835.7,1835.6,40.8]
[1743337524711,4.222,1835.8,1835.6,42.2627]
[1743337524909,5.7132,1835.8,1835.7,1.4627]
[1743337525306,5.7132,1835.8,1835.7,42.2627]
[1743337525912,53.868,1836.2,1835.7,45.4705]
[1743337526110,3.489,1836.2,1835.8,2.9085]
[1743337526413,5.39349607,1836.2,1835.9,1.3578]
[1743337526615,1.4651,1836.1,1835.9,1.3578]
[1743337526914,1.4651,1836.1,1835.9,4.5656]
[1743337527411,1.4651,1836.1,1836.0,1.3578]
[1743337527617,7.13912951,1836.3,1836.0,1.3578]
[1743337527916,1.4651,1836.2,1836.0,1.36597149]
[1743337528515,1.4651,1836.2,1836.1,40.8]
[1743337529310,3.2078,1836.3,1836.1,40.8]
[1743337529516,1.4716,1836.7,1836.2,2.1162]
[1743337529517,1.462,1836.6,1836.2,2.1162]
[1743337529708,1.462,1836.6,1836.3,4.6451]
[1743337529906,1.462,1836.6,1836.4,1.4373]
[1743337530716,1.462,1836.6,1836.5,3.2078]
[1743337531310,0.43457871,1836.8,1836.5,44.0078]
[1743337531511,1.462,1836.8,1836.6,2.1595]
[1743337531712,1.462,1836.8,1836.7,1.4373]
[1743337532307,1.462,1836.8,1836.7,42.2373]
[1743337533712,0.43979672,1837.1,1836.7,45.4451]
[1743337534016,1.3592,1837.0,1836.8,1.383]
[1743337534619,0.4348934,1837.1,1836.8,1.383]
[1743337534813,1.3592,1837.0,1836.8,1.383]
[1743337536018,3.507,1837.2,1836.8,1.383]
[1743337536315,8.62593322,1837.2,1836.7,44.0078]
[1743337536520,3.2078,1837.0,1836.7,40.8]
[1743337536817,6.3849,1836.9,1836.7,40.8]
[1743337537021,4.9076,1836.9,1836.8,1.4353]
[1743337537220,4.9076,1836.9,1836.6,0.7222]
[1743337537612,4.9076,1836.9,1836.8,40.8]
[1743337538119,4.9076,1836.9,1836.8,42.2353]
[1743337538617,4.2004,1836.9,1836.8,42.2353]
[1743337539014,3.511,1836.9,1836.8,42.2353]
[1743337539316,3.518,1837.0,1836.8,42.9247]
[1743337539619,3.518,1837.0,1836.9,1.4176]
[1743337540215,4.2242,1837.1,1836.9,42.2176]
[1743337540614,4.2242,1837.1,1837.0,1.4176]
[1743337541223,4.2242,1837.1,1837.0,40.8]
[1743337543118,4.2242,1837.1,1837.0,42.1662]
[1743337543519,3.517,1837.1,1837.0,42.1662]
[1743337543718,3.517,1837.1,1837.0,42.8983]
[1743337544624,4.9876,1837.3,1837.0,42.8983]
[1743337544823,4.9876,1837.3,1837.1,1.4609]
[1743337545323,57.52068178,1837.4,1837.1,1.4609]
[1743337546213,57.52068178,1837.4,1837.2,0.7491]
[1743337546418,57.52068178,1837.4,1837.3,1.4609]
[1743337546613,3.524,1837.8,1837.3,1.4609]
[1743337546816,3.524,1837.8,1837.7,40.8]
[1743337550425,5.09682549,1837.9,1837.7,40.8]
[1743337550624,3.535,1837.8,1837.7,40.8]
[1743337550824,4.9851,1837.8,1837.7,40.8]
[1743337556221,4.9851,1837.8,1837.1,6.0683]
[1743337556425,3.2078,1837.6,1837.2,1.4834]
[1743337556617,2.1774,1837.5,1837.2,1.4834]
[1743337556927,1.4301,1837.4,1837.3,3.2078]
[1743337557126,1.4301,1837.4,1837.3,44.0078]
[1743337557527,3.528,1837.5,1837.3,44.0078]
[1743337557827,4.9581,1837.5,1837.4,1.4186]
[1743337558025,4.9581,1837.5,1837.4,2.1046]
[1743337558417,4.9581,1837.5,1837.4,41.486]
[1743337558618,4.9581,1837.5,1837.4,40.8]
[1743337561025,3.2078,1837.9,1837.4,43.3]
[1743337561226,5.14120671,1838.0,1837.5,6.0557]
[1743337561427,4.6963,1837.8,1837.5,0.7354]
[1743337561723,6.509,1837.7,1837.4,40.8]
[1743337561923,1.4885,1837.6,1837.4,42.1856]
[1743337562921,4.6963,1837.6,1837.4,40.8]
[1743337563429,1.3909,1837.5,1837.2,1.4475]
[1743337563628,3.589,1837.4,1837.2,1.4475]
[1743337563829,1.3909,1837.3,1837.2,1.4475]
[1743337564027,1.3909,1837.3,1837.2,42.2475]
[1743337565733,3.584,1837.3,1837.2,42.2475]
[1743337565933,5.0722,1837.3,1837.2,42.2475]
[1743337568433,5.0722,1837.3,1837.1,3.9432]
[1743337568630,1.4882,1837.2,1837.1,6.0729]
[1743337568936,1.4882,1837.2,1837.1,3.9432]
[1743337569328,1.4882,1837.2,1837.1,45.4669]
[1743337569529,1.4882,1837.2,1837.1,42.2591]
[1743337569728,1.4882,1837.2,1837.1,41.5354]
[1743337569929,2.9409,1837.2,1837.1,41.5354]
[1743337572340,2.9409,1837.2,1837.0,0.00817149]
[1743337572534,1.4337,1837.1,1837.0,0.00817149]
[1743337572735,1.4337,1837.1,1837.0,1.42907149]
[1743337572929,6.7918,1837.3,1837.0,1.42907149]
[1743337573129,1.4337,1837.2,1837.0,1.42907149]
[1743337573333,1.4337,1837.2,1837.1,40.8]
[1743337573739,2.1415,1837.2,1837.1,40.8]
[1743337573939,2.827,1837.2,1837.1,40.8]
[1743337576132,2.1415,1837.2,1837.1,40.8]
[1743337576332,1.4337,1837.2,1837.1,40.8]
[1743337576537,3.59,1837.2,1837.1,40.8]
[1743337580842,3.59,1837.2,1837.1,42.266]
[1743337581536,3.2078,1837.5,1837.1,45.4738]
[1743337581742,3.593,1837.4,1837.3,3.2078]
[1743337581944,3.593,1837.4,1837.3,3.939]
[1743337582145,3.593,1837.4,1837.3,44.739]
[1743337586652,1.4737,1837.7,1837.3,44.739]
[1743337586956,3.584,1837.6,1837.4,2.1078]
[1743337587158,4.23000827,1838.0,1837.5,4.6215]
[1743337587355,3.612,1838.0,1837.7,3.2078]
[1743337587556,3.612,1838.0,1837.9,40.8]
[1743337588458,4.05494976,1838.0,1837.9,40.8]
[1743337588649,3.612,1838.0,1837.9,42.171]
[1743337589563,3.612,1838.0,1837.9,40.8]
[1743337589755,5.0732,1838.0,1837.9,40.8]
[1743337589954,3.65400933,1838.1,1837.9,40.8]
[1743337589955,0.44620933,1838.1,1837.9,40.8]
[1743337590155,3.631,1838.0,1837.9,40.8]
[1743337592263,4.3343,1838.0,1837.9,40.8]
[1743337592856,3.631,1838.0,1837.9,40.8]
[1743337595758,6.132,1838.0,1837.9,40.8]
[1743337595965,12.61675506,1838.0,1836.9,1.4162]
[1743337596164,3.2078,1837.5,1836.9,4.624]
[1743337596363,3.671,1837.4,1837.3,3.2078]
[1743337596565,3.673,1837.4,1837.0,3.21597149]
[1743337596753,1.447,1837.7,1837.0,3.21597149]
[1743337596958,1.447,1837.7,1837.6,40.8]
[1743337597161,5.12,1837.7,1837.6,40.8]
[1743337598867,3.673,1837.7,1837.6,40.8]
[1743337599258,3.673,1837.7,1837.6,44.0078]
[1743337599768,3.669,1837.9,1837.6,44.0078]
[1743337599969,3.669,1837.9,1837.7,1.4604]
[1743337600866,3.669,1837.9,1837.8,1.3817]
[1743337601364,3.665,1838.1,1837.8,1.3817]
[1743337601565,3.665,1838.1,1838.0,40.8]
[1743337601863,4.346,1838.1,1838.0,40.8]
[1743337602064,3.664,1838.1,1838.0,40.8]
[1743337602471,0.681,1838.3,1838.0,40.8]
[1743337602663,3.2078,1838.4,1838.1,2.9152]
[1743337602868,3.2078,1838.4,1838.2,1.5007]
[1743337604768,3.661,1838.3,1838.2,1.5007]
[1743337605364,4.3421,1838.3,1838.2,42.3007]
[1743337607862,3.661,1838.3,1838.2,42.3007]
[1743337609370,3.661,1838.3,1838.2,40.8]
[1743337610071,3.661,1838.3,1838.2,42.9004]
[1743337610470,3.661,1838.3,1838.2,42.1689]
[1743337611175,3.661,1838.3,1838.2,40.8]
[1743337611373,6.8688,1838.3,1838.2,40.8]
[1743337611872,3.661,1838.3,1838.2,40.8]
[1743337615475,3.661,1838.3,1838.2,42.3042]
[1743337615674,3.9199,1838.5,1838.2,42.3042]
[1743337615868,3.641,1838.4,1838.1,0.7147]
[1743337616069,0.7531,1838.3,1838.1,2.2189]
[1743337616272,0.7531,1838.3,1838.2,42.3042]
[1743337618271,6.8708,1839.2,1838.2,51.675]
[1743337618471,4.3909,1839.2,1838.7,3.2078]
[1743337618775,4.3909,1839.2,1838.8,2.9842]
[1743337618975,4.3909,1839.2,1838.9,1.5065]